[Event "*** Titled Tuesday Blitz"]
[Site "Chess.com"]
[Date "2020.04.14"]
[Round "2"]
[White "Chigorinetz"]
[Black "Haridaskesavan"]
[Result "0-1"]
[WhiteElo "2451"]
[BlackElo "2217"]
[TimeControl "180+1"]
[EndTime "10:18:12 PDT"]
[Termination "Haridaskesavan won on time"]

1. e4 {[%clk 0:03:00.9]} 1... e5 {[%clk 0:02:59.7]} 2. Bc4 {[%clk 0:02:59.9]}
2... Nc6 {[%clk 0:02:59.2]} 3. Nc3 {[%clk 0:02:59.4]} 3... Nf6 {[%clk
0:02:58.2]} 4. d3 {[%clk 0:02:59.3]} 4... Bb4 {[%clk 0:02:57.6]} 5. Nf3 {[%clk
0:02:58.4]} 5... d5 {[%clk 0:02:56.4]} 6. exd5 {[%clk 0:02:58.4]} 6... Nxd5
{[%clk 0:02:55.8]} 7. O-O {[%clk 0:02:58.4]} 7... Nxc3 {[%clk 0:02:51.4]} 8.
bxc3 {[%clk 0:02:59.3]} 8... Bxc3 {[%clk 0:02:51.2]} 9. Ng5 {[%clk 0:02:58.1]}
9... Be6 {[%clk 0:02:28.3]} 10. Nxe6 {[%clk 0:02:57.5]} 10... fxe6 {[%clk
0:02:28.1]} 11. Rb1 {[%clk 0:02:58.4]} 11... Qe7 {[%clk 0:02:15.8]} 12. Rxb7
{[%clk 0:02:55.4]} 12... O-O {[%clk 0:02:13.7]} 13. Qg4 {[%clk 0:02:35.6]} 13...
Rae8 {[%clk 0:02:02.5]} 14. Qe4 {[%clk 0:02:34]} 14... Nd8 {[%clk 0:01:59.8]}
15. Rxa7 {[%clk 0:02:30.2]} 15... Bd4 {[%clk 0:01:59.1]} 16. Ra8 {[%clk
0:02:22.7]} 16... Qb4 {[%clk 0:01:48.4]} 17. Be3 {[%clk 0:02:05]} 17... c5
{[%clk 0:01:31.6]} 18. g3 {[%clk 0:01:57.6]} 18... Kh8 {[%clk 0:01:27]} 19. a4
{[%clk 0:01:54.9]} 19... Nf7 {[%clk 0:01:22.9]} 20. Rxe8 {[%clk 0:01:53.1]}
20... Rxe8 {[%clk 0:01:21.4]} 21. Qc6 {[%clk 0:01:51.5]} 21... Rf8 {[%clk
0:01:11.4]} 22. Bc1 {[%clk 0:01:45.1]} 22... Nh6 {[%clk 0:01:02.3]} 23. Qe4
{[%clk 0:01:26.8]} 23... Ng4 {[%clk 0:00:39]} 24. Kg2 {[%clk 0:00:57.1]} 24...
Nxf2 {[%clk 0:00:28.7]} 25. Qc6 {[%clk 0:00:52.9]} 25... Qb8 {[%clk 0:00:24]}
26. c3 {[%clk 0:00:43]} 26... Rc8 {[%clk 0:00:23.6]} 27. Qf3 {[%clk 0:00:37.6]}
27... Rf8 {[%clk 0:00:22.4]} 28. Qxf8+ {[%clk 0:00:34.6]} 28... Qxf8 {[%clk
0:00:21.5]} 29. cxd4 {[%clk 0:00:35.5]} 29... Qa8+ {[%clk 0:00:19.3]} 30. Kxf2
{[%clk 0:00:35.3]} 30... cxd4 {[%clk 0:00:18]} 31. Kg1 {[%clk 0:00:27.6]} 31...
h5 {[%clk 0:00:16.4]} 32. Bb5 {[%clk 0:00:25.1]} 32... e4 {[%clk 0:00:14.7]} 33.
dxe4 {[%clk 0:00:24]} 33... Qxe4 {[%clk 0:00:13.5]} 34. Bd2 {[%clk 0:00:22.2]}
34... d3 {[%clk 0:00:12.6]} 35. a5 {[%clk 0:00:17.7]} 35... Qd4+ {[%clk
0:00:11.2]} 36. Rf2 {[%clk 0:00:17.5]} 36... Qa1+ {[%clk 0:00:06.9]} 37. Kg2
{[%clk 0:00:17.1]} 37... Qd4 {[%clk 0:00:06.9]} 38. Kg1 {[%clk 0:00:14.5]} 38...
Qa1+ {[%clk 0:00:06.1]} 39. Kg2 {[%clk 0:00:14.2]} 39... Qd4 {[%clk 0:00:06.5]}
40. Be8 {[%clk 0:00:13.2]} 40... Qd5+ {[%clk 0:00:06.1]} 41. Kg1 {[%clk
0:00:11.7]} 41... Qa2 {[%clk 0:00:04.9]} 42. Bg6 {[%clk 0:00:06.8]} 42... Qb1+
{[%clk 0:00:05.8]} 43. Kg2 {[%clk 0:00:06.1]} 43... Qb7+ {[%clk 0:00:06.7]} 44.
Kh3 {[%clk 0:00:05.3]} 44... Kg8 {[%clk 0:00:05.8]} 45. Bc3 {[%clk 0:00:03.7]}
45... e5 {[%clk 0:00:06]} 46. Bb4 {[%clk 0:00:03.6]} 46... Qc8+ {[%clk
0:00:06.2]} 47. Kg2 {[%clk 0:00:02]} 47... Qb7+ {[%clk 0:00:06.8]} 0-1

[Event "*** Titled Tuesday Blitz"]
[Site "Chess.com"]
[Date "2020.04.14"]
[Round "2"]
[White "djogrodek1"]
[Black "keepitcool9499"]
[Result "1-0"]
[WhiteElo "2515"]
[BlackElo "2278"]
[TimeControl "180+1"]
[EndTime "10:18:13 PDT"]
[Termination "djogrodek1 won by checkmate"]

1. c4 {[%clk 0:03:00.9]} 1... Nf6 {[%clk 0:02:57.7]} 2. g3 {[%clk 0:02:57.3]}
2... g6 {[%clk 0:02:54.7]} 3. Bg2 {[%clk 0:02:57.2]} 3... Bg7 {[%clk 0:02:54.1]}
4. Nc3 {[%clk 0:02:57.4]} 4... O-O {[%clk 0:02:52.2]} 5. Nf3 {[%clk 0:02:32.3]}
5... c6 {[%clk 0:02:45.5]} 6. d4 {[%clk 0:02:02.3]} 6... d5 {[%clk 0:02:42]} 7.
cxd5 {[%clk 0:02:03.2]} 7... cxd5 {[%clk 0:02:31.6]} 8. Ne5 {[%clk 0:02:03.3]}
8... Nc6 {[%clk 0:02:26.9]} 9. Nxc6 {[%clk 0:02:03]} 9... bxc6 {[%clk
0:02:27.8]} 10. O-O {[%clk 0:02:03.9]} 10... Bf5 {[%clk 0:02:15.4]} 11. Bf4
{[%clk 0:02:03.7]} 11... Nh5 {[%clk 0:02:01.3]} 12. Be3 {[%clk 0:02:03.1]} 12...
Nf6 {[%clk 0:01:58.8]} 13. h3 {[%clk 0:02:00.1]} 13... Rb8 {[%clk 0:01:56.5]}
14. b3 {[%clk 0:01:46.2]} 14... Qa5 {[%clk 0:01:48.2]} 15. Na4 {[%clk
0:01:42.7]} 15... Be4 {[%clk 0:01:44.7]} 16. Rc1 {[%clk 0:01:42.5]} 16... Bxg2
{[%clk 0:01:43.1]} 17. Kxg2 {[%clk 0:01:43.4]} 17... Rfc8 {[%clk 0:01:34.1]} 18.
Bf4 {[%clk 0:01:42.9]} 18... Ra8 {[%clk 0:01:27.8]} 19. Be5 {[%clk 0:01:31.1]}
19... Ne4 {[%clk 0:01:24.3]} 20. Bxg7 {[%clk 0:01:32]} 20... Kxg7 {[%clk
0:01:25.2]} 21. Qe1 {[%clk 0:01:24.6]} 21... Qxe1 {[%clk 0:01:23.2]} 22. Rfxe1
{[%clk 0:01:25.5]} 22... f6 {[%clk 0:01:17.4]} 23. Rc2 {[%clk 0:01:24.1]} 23...
Rc7 {[%clk 0:01:14.3]} 24. Rec1 {[%clk 0:01:19.3]} 24... Rac8 {[%clk 0:01:14.3]}
25. f3 {[%clk 0:01:20]} 25... Nd6 {[%clk 0:01:11.6]} 26. Nc5 {[%clk 0:01:20.4]}
26... Nb5 {[%clk 0:01:10.1]} 27. Ne6+ {[%clk 0:01:20.1]} 27... Kf7 {[%clk
0:01:09.1]} 28. Nxc7 {[%clk 0:01:21]} 28... Rxc7 {[%clk 0:01:09.8]} 29. Rxc6
{[%clk 0:01:18]} 29... Rd7 {[%clk 0:01:07.5]} 30. e3 {[%clk 0:01:16.6]} 30... e5
{[%clk 0:01:05.3]} 31. a4 {[%clk 0:01:15.2]} 31... Nd6 {[%clk 0:01:02.1]} 32.
Rc7 {[%clk 0:01:15]} 32... Ke6 {[%clk 0:01:02.2]} 33. R1c6 {[%clk 0:01:08.8]}
33... g5 {[%clk 0:00:53.9]} 34. a5 {[%clk 0:01:06.7]} 34... Ke7 {[%clk
0:00:48.8]} 35. Rc5 {[%clk 0:01:00]} 35... Ke6 {[%clk 0:00:43]} 36. g4 {[%clk
0:01:00.2]} 36... h6 {[%clk 0:00:42.5]} 37. Kf2 {[%clk 0:00:59.5]} 37... Nb7
{[%clk 0:00:40.8]} 38. R5c6+ {[%clk 0:00:56.8]} 38... Nd6 {[%clk 0:00:35.1]} 39.
Ke2 {[%clk 0:00:56]} 39... Ke7 {[%clk 0:00:33.8]} 40. Kd3 {[%clk 0:00:53.6]}
40... e4+ {[%clk 0:00:31.9]} 41. fxe4 {[%clk 0:00:50.8]} 41... dxe4+ {[%clk
0:00:30.3]} 42. Kd2 {[%clk 0:00:45.7]} 42... Ke6 {[%clk 0:00:28.2]} 43. b4
{[%clk 0:00:43.3]} 43... Ke7 {[%clk 0:00:26]} 44. Kc2 {[%clk 0:00:40.5]} 44...
f5 {[%clk 0:00:22]} 45. gxf5 {[%clk 0:00:39]} 45... Nxf5 {[%clk 0:00:22.9]} 46.
Kd2 {[%clk 0:00:34]} 46... h5 {[%clk 0:00:16.5]} 47. Rxd7+ {[%clk 0:00:31.4]}
47... Kxd7 {[%clk 0:00:17.4]} 48. Rg6 {[%clk 0:00:32.1]} 48... Nh4 {[%clk
0:00:15.5]} 49. Rg7+ {[%clk 0:00:28.3]} 49... Kc6 {[%clk 0:00:14.2]} 50. Rxa7
{[%clk 0:00:29.2]} 50... Nf3+ {[%clk 0:00:11.9]} 51. Kc3 {[%clk 0:00:25.3]}
51... Ng1 {[%clk 0:00:11.3]} 52. Rh7 {[%clk 0:00:25.5]} 52... h4 {[%clk
0:00:10.9]} 53. a6 {[%clk 0:00:25.9]} 53... Ne2+ {[%clk 0:00:07.7]} 54. Kc4
{[%clk 0:00:24.7]} 54... Ng3 {[%clk 0:00:05.8]} 55. a7 {[%clk 0:00:24.2]} 55...
Nf5 {[%clk 0:00:06.7]} 56. a8=Q+ {[%clk 0:00:24]} 56... Kb6 {[%clk 0:00:06.6]}
57. Qa5+ {[%clk 0:00:23.9]} 57... Kc6 {[%clk 0:00:06.5]} 58. Qc5# {[%clk
0:00:24.8]} 1-0

[Event "*** Titled Tuesday Blitz"]
[Site "Chess.com"]
[Date "2020.04.14"]
[Round "2"]
[White "OhanyanEminChess"]
[Black "dusanacns"]
[Result "0-1"]
[WhiteElo "2549"]
[BlackElo "2786"]
[TimeControl "180+1"]
[EndTime "10:18:14 PDT"]
[Termination "dusanacns won by checkmate"]

1. e4 {[%clk 0:03:00.9]} 1... c6 {[%clk 0:02:59.8]} 2. d4 {[%clk 0:03:00.6]}
2... d5 {[%clk 0:03:00.3]} 3. Nc3 {[%clk 0:03:01]} 3... dxe4 {[%clk 0:03:00.6]}
4. Nxe4 {[%clk 0:03:01.1]} 4... Nf6 {[%clk 0:03:01.5]} 5. Nxf6+ {[%clk
0:03:00.8]} 5... exf6 {[%clk 0:03:02.4]} 6. Bd3 {[%clk 0:03:01.1]} 6... Qxd4
{[%clk 0:02:55.8]} 7. Nf3 {[%clk 0:02:52.4]} 7... Qd8 {[%clk 0:02:54]} 8. O-O
{[%clk 0:02:26.5]} 8... Be7 {[%clk 0:02:47.6]} 9. Be3 {[%clk 0:02:25]} 9... O-O
{[%clk 0:02:47.6]} 10. Nd4 {[%clk 0:02:25.2]} 10... Re8 {[%clk 0:02:43.9]} 11.
Qh5 {[%clk 0:02:23.6]} 11... g6 {[%clk 0:02:43.4]} 12. Qh6 {[%clk 0:02:23]}
12... Bf8 {[%clk 0:02:43.2]} 13. Qh4 {[%clk 0:02:23.6]} 13... Nd7 {[%clk
0:02:41.7]} 14. Rad1 {[%clk 0:02:22.6]} 14... Ne5 {[%clk 0:01:54.3]} 15. Nf5
{[%clk 0:01:52.6]} 15... Bxf5 {[%clk 0:01:28.7]} 16. Bxf5 {[%clk 0:01:52.1]}
16... Qc7 {[%clk 0:01:12.6]} 17. Bh3 {[%clk 0:01:26.4]} 17... f5 {[%clk
0:01:10]} 18. Bd4 {[%clk 0:01:22.4]} 18... Bg7 {[%clk 0:01:08]} 19. b3 {[%clk
0:01:15.6]} 19... Rad8 {[%clk 0:01:03.8]} 20. Ba1 {[%clk 0:01:13.2]} 20... a5
{[%clk 0:01:01.7]} 21. Qg3 {[%clk 0:00:55.1]} 21... Qc8 {[%clk 0:00:50]} 22.
Rxd8 {[%clk 0:00:51.3]} 22... Qxd8 {[%clk 0:00:50.9]} 23. Qc3 {[%clk 0:00:46.3]}
23... Bf6 {[%clk 0:00:45.6]} 24. Kh1 {[%clk 0:00:45.6]} 24... Ng4 {[%clk
0:00:43.3]} 25. Qf3 {[%clk 0:00:28]} 25... Bxa1 {[%clk 0:00:42.9]} 26. Rxa1
{[%clk 0:00:28.9]} 26... Qd4 {[%clk 0:00:41.3]} 27. Rf1 {[%clk 0:00:26.4]} 27...
Nf6 {[%clk 0:00:25.7]} 28. g3 {[%clk 0:00:23.9]} 28... Kg7 {[%clk 0:00:23.3]}
29. Bg2 {[%clk 0:00:23.7]} 29... Qd2 {[%clk 0:00:20.5]} 30. c4 {[%clk
0:00:14.9]} 30... Re2 {[%clk 0:00:17.2]} 31. Kg1 {[%clk 0:00:14.2]} 31... Qxa2
{[%clk 0:00:15.8]} 32. Qc3 {[%clk 0:00:14.1]} 32... Qd2 {[%clk 0:00:15.3]} 33.
Qa1 {[%clk 0:00:13.5]} 33... h5 {[%clk 0:00:09.9]} 34. Bf3 {[%clk 0:00:12.9]}
34... Re6 {[%clk 0:00:08.7]} 35. Rd1 {[%clk 0:00:13]} 35... Qb4 {[%clk
0:00:08.7]} 36. Kg2 {[%clk 0:00:05]} 36... Kf8 {[%clk 0:00:06.9]} 37. Rd8+
{[%clk 0:00:03.3]} 37... Kg7 {[%clk 0:00:05.5]} 38. Rd3 {[%clk 0:00:03.7]} 38...
b6 {[%clk 0:00:04.9]} 39. Qb2 {[%clk 0:00:02.9]} 39... Qc5 {[%clk 0:00:05]} 40.
Qa1 {[%clk 0:00:03]} 40... g5 {[%clk 0:00:04.7]} 41. h3 {[%clk 0:00:02.6]} 41...
g4 {[%clk 0:00:05.1]} 42. hxg4 {[%clk 0:00:03.4]} 42... hxg4 {[%clk 0:00:06]}
43. Bd1 {[%clk 0:00:04.3]} 43... Qe5 {[%clk 0:00:06.2]} 44. Qc1 {[%clk
0:00:03.8]} 44... Ne4 {[%clk 0:00:06.1]} 45. Re3 {[%clk 0:00:03.2]} 45... Qf6
{[%clk 0:00:06.2]} 46. Bc2 {[%clk 0:00:03.5]} 46... Ng5 {[%clk 0:00:06.2]} 47.
Rxe6 {[%clk 0:00:04.4]} 47... Nxe6 {[%clk 0:00:07]} 48. Qe3 {[%clk 0:00:04.4]}
48... f4 {[%clk 0:00:07.1]} 49. Qxb6 {[%clk 0:00:03.8]} 49... f3+ {[%clk
0:00:07.1]} 50. Kg1 {[%clk 0:00:04]} 50... Qa1+ {[%clk 0:00:07.3]} 51. Kh2
{[%clk 0:00:03.5]} 51... Qf1 {[%clk 0:00:07.5]} 52. Bf5 {[%clk 0:00:03.9]} 52...
Qg2# {[%clk 0:00:07.6]} 0-1

[Event "*** Titled Tuesday Blitz"]
[Site "Chess.com"]
[Date "2020.04.14"]
[Round "2"]
[White "Crazy_girl99"]
[Black "ketster"]
[Result "1-0"]
[WhiteElo "2509"]
[BlackElo "2263"]
[TimeControl "180+1"]
[EndTime "10:18:15 PDT"]
[Termination "Crazy_girl99 won on time"]

1. Nf3 {[%clk 0:03:00.9]} 1... d5 {[%clk 0:02:58.6]} 2. g3 {[%clk 0:02:59.7]}
2... Nf6 {[%clk 0:02:58.6]} 3. Bg2 {[%clk 0:02:58.8]} 3... e6 {[%clk 0:02:58.9]}
4. d4 {[%clk 0:02:58.5]} 4... b5 {[%clk 0:02:57.8]} 5. O-O {[%clk 0:02:58.1]}
5... Bb7 {[%clk 0:02:58.3]} 6. c3 {[%clk 0:02:55.9]} 6... Nbd7 {[%clk
0:02:58.1]} 7. Bf4 {[%clk 0:02:55.6]} 7... c5 {[%clk 0:02:58.1]} 8. Nbd2 {[%clk
0:02:55.2]} 8... Be7 {[%clk 0:02:52.1]} 9. Re1 {[%clk 0:02:54.8]} 9... O-O
{[%clk 0:02:52.2]} 10. Ne5 {[%clk 0:02:54.3]} 10... Rc8 {[%clk 0:02:48.2]} 11.
h3 {[%clk 0:02:42.6]} 11... Qb6 {[%clk 0:02:42.4]} 12. Bg5 {[%clk 0:02:31.8]}
12... Bd8 {[%clk 0:02:30.7]} 13. Bxf6 {[%clk 0:02:20.3]} 13... Nxf6 {[%clk
0:02:29.9]} 14. e3 {[%clk 0:02:20.2]} 14... Bc7 {[%clk 0:02:08.5]} 15. Ndf3
{[%clk 0:02:07.9]} 15... Rfd8 {[%clk 0:02:04.9]} 16. g4 {[%clk 0:02:07.3]} 16...
Ne4 {[%clk 0:02:03.8]} 17. Rc1 {[%clk 0:01:45.4]} 17... Bb8 {[%clk 0:01:55.1]}
18. Nd3 {[%clk 0:01:41.4]} 18... c4 {[%clk 0:01:48.2]} 19. Nf4 {[%clk
0:01:40.9]} 19... b4 {[%clk 0:01:45.2]} 20. Nd2 {[%clk 0:01:37.6]} 20... Nxd2
{[%clk 0:01:39.8]} 21. Qxd2 {[%clk 0:01:37]} 21... Bd6 {[%clk 0:01:37.1]} 22.
Nh5 {[%clk 0:01:32.2]} 22... Bc6 {[%clk 0:01:26.7]} 23. e4 {[%clk 0:01:31]}
23... dxe4 {[%clk 0:01:18.3]} 24. Qg5 {[%clk 0:01:29.4]} 24... Bf8 {[%clk
0:01:15.5]} 25. Bxe4 {[%clk 0:01:03.1]} 25... Bxe4 {[%clk 0:01:14.1]} 26. Rxe4
{[%clk 0:01:02.3]} 26... Kh8 {[%clk 0:01:11.9]} 27. Rce1 {[%clk 0:00:56.7]}
27... bxc3 {[%clk 0:01:09.1]} 28. bxc3 {[%clk 0:00:57.6]} 28... Rd5 {[%clk
0:01:02.1]} 29. Qd2 {[%clk 0:00:56.8]} 29... Rb8 {[%clk 0:00:58.3]} 30. Nf4
{[%clk 0:00:53.4]} 30... Rdd8 {[%clk 0:00:53]} 31. Ng2 {[%clk 0:00:45.3]} 31...
Qb2 {[%clk 0:00:52]} 32. Qxb2 {[%clk 0:00:40.6]} 32... Rxb2 {[%clk 0:00:51.2]}
33. R4e2 {[%clk 0:00:41.2]} 33... Rdb8 {[%clk 0:00:50.7]} 34. Ne3 {[%clk
0:00:41.4]} 34... Rxe2 {[%clk 0:00:40]} 35. Rxe2 {[%clk 0:00:42.3]} 35... Rb1+
{[%clk 0:00:39.8]} 36. Kg2 {[%clk 0:00:41.7]} 36... Rc1 {[%clk 0:00:29.5]} 37.
Rb2 {[%clk 0:00:30.2]} 37... Rxc3 {[%clk 0:00:27]} 38. Rb8 {[%clk 0:00:30]}
38... Kg8 {[%clk 0:00:26.9]} 39. d5 {[%clk 0:00:29.4]} 39... Rd3 {[%clk
0:00:16.9]} 40. dxe6 {[%clk 0:00:29]} 40... fxe6 {[%clk 0:00:16.9]} 41. Nxc4
{[%clk 0:00:29.6]} 41... Rd7 {[%clk 0:00:12.2]} 42. Ne5 {[%clk 0:00:28.8]} 42...
Rc7 {[%clk 0:00:12]} 43. a4 {[%clk 0:00:25]} 43... g6 {[%clk 0:00:12.1]} 44. a5
{[%clk 0:00:19.8]} 44... Kg7 {[%clk 0:00:11.1]} 45. a6 {[%clk 0:00:19.9]} 45...
Bd6 {[%clk 0:00:06.4]} 46. Nf3 {[%clk 0:00:20.1]} 46... Bc5 {[%clk 0:00:05.4]}
47. Rb7 {[%clk 0:00:19.8]} 47... Bb6 {[%clk 0:00:05.5]} 48. Nd4 {[%clk
0:00:18.7]} 48... Kf6 {[%clk 0:00:04.8]} 49. Nb5 {[%clk 0:00:18.8]} 49... Rc5
{[%clk 0:00:02.8]} 50. Rxb6 {[%clk 0:00:18.1]} 50... axb6 {[%clk 0:00:01.8]} 51.
a7 {[%clk 0:00:18.7]} 51... Rc8 {[%clk 0:00:02.3]} 52. Nc7 {[%clk 0:00:19]}
52... Rxc7 {[%clk 0:00:01.7]} 53. a8=Q {[%clk 0:00:18.9]} 53... Rc5 {[%clk
0:00:02.2]} 54. Qd8+ {[%clk 0:00:18.2]} 54... Kg7 {[%clk 0:00:02.1]} 55. Qxb6
{[%clk 0:00:18.8]} 1-0

[Event "*** Titled Tuesday Blitz"]
[Site "Chess.com"]
[Date "2020.04.14"]
[Round "2"]
[White "tornikesanikidze"]
[Black "NewBornNow"]
[Result "1/2-1/2"]
[WhiteElo "2333"]
[BlackElo "2656"]
[TimeControl "180+1"]
[EndTime "10:18:16 PDT"]
[Termination "Game drawn by stalemate"]

1. d4 {[%clk 0:03:00.9]} 1... d6 {[%clk 0:02:58.9]} 2. Nf3 {[%clk 0:02:56]} 2...
Nf6 {[%clk 0:02:57.5]} 3. c4 {[%clk 0:02:55.7]} 3... g6 {[%clk 0:02:57.4]} 4.
Nc3 {[%clk 0:02:55.9]} 4... Bf5 {[%clk 0:02:57.3]} 5. Ng5 {[%clk 0:02:45.3]}
5... Bg7 {[%clk 0:02:55.9]} 6. e4 {[%clk 0:02:41.7]} 6... Bc8 {[%clk 0:02:55.4]}
7. Nf3 {[%clk 0:02:40.9]} 7... O-O {[%clk 0:02:54.4]} 8. Be2 {[%clk 0:02:41.2]}
8... e5 {[%clk 0:02:54.1]} 9. O-O {[%clk 0:02:40.2]} 9... exd4 {[%clk
0:02:53.9]} 10. Nxd4 {[%clk 0:02:40.4]} 10... Nc6 {[%clk 0:02:53.9]} 11. Be3
{[%clk 0:02:39.3]} 11... Re8 {[%clk 0:02:53.6]} 12. f3 {[%clk 0:02:39.7]} 12...
Nh5 {[%clk 0:02:53.4]} 13. Qd2 {[%clk 0:02:26.8]} 13... Nf4 {[%clk 0:02:52.2]}
14. Nxc6 {[%clk 0:02:19.6]} 14... Nxe2+ {[%clk 0:02:49.7]} 15. Nxe2 {[%clk
0:02:18.9]} 15... bxc6 {[%clk 0:02:50.1]} 16. Bd4 {[%clk 0:02:18.9]} 16... f6
{[%clk 0:02:50.2]} 17. Rad1 {[%clk 0:02:17]} 17... Be6 {[%clk 0:02:48.5]} 18. b3
{[%clk 0:02:16.3]} 18... Qe7 {[%clk 0:02:47.6]} 19. Rfe1 {[%clk 0:02:15.2]}
19... a5 {[%clk 0:02:46.8]} 20. Nc3 {[%clk 0:02:13.8]} 20... c5 {[%clk
0:02:46.4]} 21. Be3 {[%clk 0:02:09.8]} 21... Qf7 {[%clk 0:02:46.3]} 22. Re2
{[%clk 0:01:50.4]} 22... f5 {[%clk 0:02:44.3]} 23. exf5 {[%clk 0:01:46.2]} 23...
Bxf5 {[%clk 0:02:43.3]} 24. Rde1 {[%clk 0:01:46.4]} 24... h5 {[%clk 0:02:36.3]}
25. Nd5 {[%clk 0:01:42.4]} 25... c6 {[%clk 0:02:33.2]} 26. Nb6 {[%clk
0:01:36.5]} 26... Ra6 {[%clk 0:02:07]} 27. Na4 {[%clk 0:01:34.1]} 27... Re6
{[%clk 0:02:06.2]} 28. Bf2 {[%clk 0:01:29.5]} 28... Rxe2 {[%clk 0:02:04.2]} 29.
Rxe2 {[%clk 0:01:30.1]} 29... Bf8 {[%clk 0:02:03.9]} 30. h3 {[%clk 0:01:11.8]}
30... Ra8 {[%clk 0:01:57.9]} 31. g4 {[%clk 0:01:11.9]} 31... hxg4 {[%clk
0:01:56]} 32. hxg4 {[%clk 0:01:12.8]} 32... Be6 {[%clk 0:01:53.4]} 33. Kg2
{[%clk 0:01:12.5]} 33... Re8 {[%clk 0:01:43.1]} 34. Qxa5 {[%clk 0:00:47.9]}
34... Bg7 {[%clk 0:01:25.8]} 35. Qd2 {[%clk 0:00:45.7]} 35... Rf8 {[%clk
0:01:25]} 36. Qe3 {[%clk 0:00:30.7]} 36... Re8 {[%clk 0:01:17.2]} 37. Qd3 {[%clk
0:00:27.6]} 37... d5 {[%clk 0:01:13.8]} 38. Nxc5 {[%clk 0:00:25.2]} 38... dxc4
{[%clk 0:01:13.3]} 39. bxc4 {[%clk 0:00:24.8]} 39... Bc8 {[%clk 0:01:11.5]} 40.
Rxe8+ {[%clk 0:00:24.1]} 40... Qxe8 {[%clk 0:01:11.2]} 41. Qe4 {[%clk
0:00:23.7]} 41... Qxe4 {[%clk 0:01:05.2]} 42. Nxe4 {[%clk 0:00:21.2]} 42... Be6
{[%clk 0:01:03.8]} 43. Nd2 {[%clk 0:00:15.1]} 43... Bc3 {[%clk 0:01:02.2]} 44.
Be3 {[%clk 0:00:14.9]} 44... Bxd2 {[%clk 0:01:00.7]} 45. Bxd2 {[%clk 0:00:15.8]}
45... Bxc4 {[%clk 0:01:01]} 46. a4 {[%clk 0:00:16.3]} 46... Kf7 {[%clk
0:01:01.3]} 47. a5 {[%clk 0:00:16.7]} 47... Ke6 {[%clk 0:01:01.2]} 48. Kf2
{[%clk 0:00:17.3]} 48... Kd5 {[%clk 0:01:00.3]} 49. Ke3 {[%clk 0:00:17.6]} 49...
c5 {[%clk 0:01:00.4]} 50. Kf4 {[%clk 0:00:16.9]} 50... Bd3 {[%clk 0:00:59.1]}
51. Kg5 {[%clk 0:00:17]} 51... Kc6 {[%clk 0:00:54.9]} 52. f4 {[%clk 0:00:17.4]}
52... Kb5 {[%clk 0:00:54.8]} 53. Kf6 {[%clk 0:00:17.3]} 53... Be2 {[%clk
0:00:52.6]} 54. f5 {[%clk 0:00:15.9]} 54... gxf5 {[%clk 0:00:51.2]} 55. gxf5
{[%clk 0:00:13]} 55... Bd3 {[%clk 0:00:50.8]} 56. Ke5 {[%clk 0:00:13.4]} 56...
Bxf5 {[%clk 0:00:50.5]} 57. Kxf5 {[%clk 0:00:14.3]} 57... Ka6 {[%clk 0:00:50.5]}
58. Ke5 {[%clk 0:00:14.5]} 58... Kb7 {[%clk 0:00:50.4]} 59. Kd5 {[%clk
0:00:14.3]} 59... Ka8 {[%clk 0:00:50.4]} 60. Kc6 {[%clk 0:00:14.5]} 60... c4
{[%clk 0:00:49.7]} 61. Bc3 {[%clk 0:00:14.6]} 61... Ka7 {[%clk 0:00:49]} 62. Kb5
{[%clk 0:00:14.8]} 62... Ka8 {[%clk 0:00:49]} 63. a6 {[%clk 0:00:15.3]} 63...
Ka7 {[%clk 0:00:49]} 64. Ka5 {[%clk 0:00:15.6]} 64... Ka8 {[%clk 0:00:48.9]} 65.
Kb6 {[%clk 0:00:15.9]} 65... Kb8 {[%clk 0:00:48.8]} 66. Be5+ {[%clk 0:00:13.7]}
66... Ka8 {[%clk 0:00:48.6]} 67. a7 {[%clk 0:00:14.2]} 67... c3 {[%clk
0:00:47.3]} 68. Bxc3 {[%clk 0:00:14.3]} 1/2-1/2